Cogmind - Beta 10.2 @@@ ROGUE MODE // 2022.01.20 @ 09:33:59 Player: xerxia Result: Destroyed by S-10 Pest with Light Assault Rifle Performance ------------- Evolutions (1) 500 Regions Visited (3) 600 Robots Destroyed (1) 5 Value Destroyed (6) 6 Prototype IDs (0) 0 Alien Tech Used (0) 0 Bonus (0) 0 TOTAL SCORE: 1111 Bonus ------- None Cogmind --------- Core Integrity 0/400 Matter 300/300 Energy 98/100 System Corruption 0% Temperature Cool (0) Movement Core (50) Location -9/Storage Parts ------- > --- POWER (1) -------- (None) > --- PROPULSION (4) --- (None) > --- UTILITY (2) ------ (None) > --- WEAPON (2) ------- (None) > --- INVENTORY (4) ---- Ion Engine Medium Storage Unit Medium Storage Unit Mini Assault Cannon Peak State ------------ > --- POWER ------------ Ion Engine > --- PROPULSION ------- Flight Unit Flight Unit Flight Unit Flight Unit > --- UTILITY ---------- Small Storage Unit > --- WEAPON ----------- Medium Laser > --- INVENTORY -------- Ion Engine Flight Unit Medium Storage Unit [Rating: 7] Favorites ----------- Power Ion Engine Engine Ion Engine Propulsion Flight Unit Treads Light Treads Leg Aluminum Leg Flight Unit Flight Unit Utility Small Storage Unit Storage Small Storage Unit Weapon Medium Laser Energy Gun Medium Laser Build | -11 -10 -9 -9 ------- Run | Scr Mat Mat Sto Slots Evolved 2 | . . 2 . Power . | . . . . Propulsion 2 | . . 2 . Utility . | . . . . Weapon . | . . . . Parts Attached 12 | 5 2 3 2 Power 1 | 1 . . . Engine 1 | 1 . . . Core . | . . . . Reactor . | . . . . Propulsion 8 | 2 2 2 2 Treads 1 | 1 . . . Leg 1 | 1 . . . Wheel . | . . . . Hover . | . . . . Flight 6 | . 2 2 2 Utility 2 | 1 . 1 . Device . | . . . . Storage 2 | 1 . 1 . Processor . | . . . . Hackware . | . . . . Protection . | . . . . Artifact . | . . . . Weapon 1 | 1 . . . Energy Gun 1 | 1 . . . Energy Cannon . | . . . . Ballistic Gun . | . . . . Ballistic Cannon . | . . . . Launcher . | . . . . Special Weapon . | . . . . Impact Weapon . | . . . . Slashing Weapon . | . . . . Piercing Weapon . | . . . . Special Melee Weapon . | . . . . Unidentified Prototypes . | . . . . Parts Lost 8 | . . . 8 Power 1 | . . . 1 Propulsion 6 | . . . 6 Utility . | . . . . Weapon 1 | . . . 1 Highest Loss Streak 6 | . . . 6 Average Slot Usage (%) 50 | . 61 70 34 Engine 8 | . 14 11 4 Flight 27 | . 18 44 22 Storage 4 | . 6 4 4 Energy Gun 7 | . 14 11 2 Naked Turns 20 | . . . 20 Heaviest Build 11 | 11 11 11 11 Greatest Support 20 | 20 10 16 12 Greatest Overweight (x) 1 | 1 1 . . Average Overweight (x) . | . . . . Largest Inventory Capacity 6 | 6 6 6 6 Average Capacity 5 | 5 4 4 4 Most Carried 6 | 6 6 4 5 Average Carried 3 | 3 4 2 4 Final Capacity 6 | 6 4 6 4 Final Carried 4 | 4 4 4 4 Class Distribution -------------------- 100% | Mutant Dominant Class ---------------- Mutant | -10/Materials Mutant | -9/Materials Mutant | -9/Storage Resources | -11 -10 -9 -9 ----------- Run | Scr Mat Mat Sto Matter Collected 300 | 250 . . 50 Remotely . | . . . . Salvage Created 71 | 71 . . . Parts . | . . . . Haulers Intercepted . | . . . . Recyclers Shooed . | . . . . Parts Field Recycled . | . . . . Retrieved Matter . | . . . . Parts Self-Destructed . | . . . . Prevented . | . . . . Kills | -11 -10 -9 -9 ------- Run | Scr Mat Mat Sto Combat Hostiles Destroyed . | . . . . Classes Destroyed 1 | 1 . . . Recycler 1 | 1 . . . Best Kill Streak 1 | 1 . . . Combat Bots Only . | . . . . Max Kills in Single Turn 1 | 1 . . . Gunslinging . | . . . . Exploded . | . . . . Melee . | . . . . Uniques/NPCs Destroyed . | . . . . Combat | -11 -10 -9 -9 -------- Run | Scr Mat Mat Sto Damage Taken 743 | . 47 41 655 Core 426 | . 21 10 395 Absorbed by Shields . | . . . . Core Remaining (%) 95 | 100 91 . . Volleys Fired 4 | 4 . . . Largest 1 | 1 . . . Hottest 50 | 50 . . . Shots Fired 4 | 4 . . . Gun 4 | 4 . . . Cannon . | . . . . Launcher . | . . . . Special . | . . . . Kinetic . | . . . . Thermal 4 | 4 . . . Explosive . | . . . . Electromagnetic . | . . . . Robot Hit Streak 4 | 4 . . . Robot Miss Streak . | . . . . Penetration Max . | . . . . Secondary Targets . | . . . . Shots Hit Robots 4 | 4 . . . Core Hits 2 | 2 . . . Critical Hits . | . . . . Critical Kills . | . . . . Critical Parts Destroyed . | . . . . Melee Attacks . | . . . . Impact . | . . . . Slashing . | . . . . Piercing . | . . . . Sneak Attacks . | . . . . Combat Hostiles . | . . . . Follow-up Attacks . | . . . . Damage Inflicted 51 | 51 . . . Guns 51 | 51 . . . Cannons . | . . . . Explosions . | . . . . Melee . | . . . . Ramming . | . . . . Kinetic . | . . . . Thermal 51 | 51 . . . Explosive . | . . . . Electromagnetic . | . . . . Impact . | . . . . Slashing . | . . . . Piercing . | . . . . Highest Corruption . | . . . . Average Corruption . | . . . . Corruption Purged . | . . . . Overload Shots . | . . . . Overflow Damage . | . . . . Projectiles . | . . . . Explosions . | . . . . Melee . | . . . . Knockbacks . | . . . . Impact . | . . . . Kinetic . | . . . . Secondary . | . . . . Self-Inflicted Damage . | . . . . Shots . | . . . . Rammed . | . . . . Targets Rammed . | . . . . Kicked . | . . . . Crushed . | . . . . Highest Temperature 40 | 40 . 4 1 Average Temperature 17 | 20 . 4 1 Received Heat Transfer 228 | . 27 15 186 Siege Activations . | . . . . Robots Corrupted . | . . . . Combat Hostiles . | . . . . Parts Fried . | . . . . Impact Corruptions . | . . . . Robots Melted . | . . . . Combat Hostiles . | . . . . Parts Melted . | . . . . Heat Transferred 148 | 148 . . . Parts Sabotaged . | . . . . Parts Stolen . | . . . . Parts Stripped . | . . . . Power Chain Reactions . | . . . . Missiles Intercepted . | . . . . Alert | -11 -10 -9 -9 ------- Run | Scr Mat Mat Sto Peak Influence 371 | 5 3 75 371 Initial 31 | . 3 . 31 Average 63 | 2 3 29 142 Maximum Alert Level 1 | . . . 1 Low Security (%) 87 | 100 100 100 68 Level 1 12 | . . . 31 Level 2 . | . . . . Level 3 . | . . . . Level 4 . | . . . . Level 5 . | . . . . High Security . | . . . . Max Security . | . . . . Squads Dispatched 4 | . 1 1 2 Investigation 2 | . . 1 1 Extermination . | . . . . Reinforcement 2 | . 1 . 1 Assault . | . . . . Garrison . | . . . . Intercept . | . . . . Construction Impeded . | . . . . Haulers Reinforced . | . . . . Stealth | -11 -10 -9 -9 --------- Run | Scr Mat Mat Sto Distress Signals 2 | . 1 . 1 Communications Jammed . | . . . . Distress Signals . | . . . . Times Spotted 41 | . 5 10 26 Peak Tracking Total 13 | . 4 12 13 Tactical Retreats 4 | . . . 4 Traps | -11 -10 -9 -9 ------- Run | Scr Mat Mat Sto Traps Triggered . | . . . . Indirectly . | . . . . Trap Hack Attempts . | . . . . Triggered . | . . . . Disarmed . | . . . . Reprogrammed . | . . . . Reused . | . . . . Traps Extracted . | . . . . Installed . | . . . . Triggered . | . . . . Machines | -11 -10 -9 -9 ---------- Run | Scr Mat Mat Sto Machines Disabled . | . . . . Max in Single Turn . | . . . . Machines Sabotaged . | . . . . Garrisons Compromised . | . . . . Overloaded Fab Kills . | . . . . Fab Network Shutdowns . | . . . . Hacking | -11 -10 -9 -9 --------- Run | Scr Mat Mat Sto Machines Accessed 5 | . 1 2 2 Terminals 5 | . 1 2 2 Fabricators . | . . . . Repair Stations . | . . . . Recycling Units . | . . . . Scanalyzers . | . . . . Garrison Access . | . . . . Total Hacks 12 | . 2 7 3 Successful 3 | . . 1 2 Failed 9 | . 2 6 1 Catastrophic 4 | . 1 2 1 Database Lockouts . | . . . . Manual 4 | . 2 2 . Terminals 12 | . 2 7 3 Fabricators . | . . . . Repair Stations . | . . . . Recycling Units . | . . . . Scanalyzers . | . . . . Garrison Access . | . . . . Terminal Hacks 3 | . . 1 2 Record 1 | . . 1 . Open Door 2 | . . . 2 Fabricator Hacks . | . . . . Repair Station Hacks . | . . . . Recycling Unit Hacks . | . . . . Scanalyzer . | . . . . Garrison Access Hacks . | . . . . Unauthorized Hacks . | . . . . Terminals . | . . . . Fabricators . | . . . . Repair Stations . | . . . . Recycling Units . | . . . . Scanalyzers . | . . . . Garrison Access . | . . . . Data Cores Recovered . | . . . . Used . | . . . . Hacking Detections 4 | . 1 2 1 Full Trace Events 2 | . . 1 1 Feedback Events . | . . . . Feedback Blocked . | . . . . Robot Schematics Acquired . | . . . . Robots Built . | . . . . Matter . | . . . . Time . | . . . . Total Robot Build Rating . | . . . . Part Schematics Acquired . | . . . . Parts Built . | . . . . Matter . | . . . . Time . | . . . . Total Part Build Rating . | . . . . Parts Repaired . | . . . . Time . | . . . . Parts Recycled . | . . . . Recycled Matter . | . . . . Retrieved Matter . | . . . . Retrieved Components . | . . . . Parts Scanalyzed . | . . . . Part Schematics Acquired . | . . . . Parts Damaged . | . . . . Bothacking | -11 -10 -9 -9 ------------ Run | Scr Mat Mat Sto Used RIF Installer . | . . . . Robots Hacked . | . . . . Non-combat . | . . . . Combat . | . . . . Robot Hacks Applied . | . . . . Relay Couplers Released . | . . . . Robots Rewired . | . . . . Allies Hacked . | . . . . Hacks Repelled . | . . . . Allies | -11 -10 -9 -9 -------- Run | Scr Mat Mat Sto Total Allies . | . . . . Largest Group . | . . . . Highest-Rated Group . | . . . . Highest-Rated Ally . | . . . . Total Orders . | . . . . Ally Attacks . | . . . . Total Damage . | . . . . Kills . | . . . . Allies Corrupted . | . . . . Allies Melted . | . . . . Intel | -11 -10 -9 -9 ------- Run | Scr Mat Mat Sto Robot Analysis Total . | . . . . Derelict Logs Recovered . | . . . . Drone Launches . | . . . . Drone Recoveries . | . . . . Exploration | -11 -10 -9 -9 ------------- Run | Scr Mat Mat Sto Turns Passed 361 | 75 69 75 142 Spaces Moved 681 | 44 120 159 358 Core 51 | 9 . . 42 Treads 1 | 1 . . . Legs 47 | 34 13 . . Wheels . | . . . . Hover . | . . . . Flight 582 | . 107 159 316 Fastest Speed 31 | 50 37 31 34 Average Speed 44 | 123 49 32 38 Slowest Speed 160 | 160 150 34 50 Overloaded Moves . | . . . . Propulsion Burnouts . | . . . . Robots Hopped 13 | . 1 3 9 Cave-ins Triggered . | . . . . Exploration Rate (%) 40 | 4 44 35 79 Regions Visited 3 Branch Regions 1 Pre-discovered Areas . | . . . . Known Exits Taken . | . . . . Unknown Exits Taken 3 | 1 1 1 . Scrap Searched . | . . . . Spaces Dug . | . . . . Terrain Destroyed . | . . . . Melee . | . . . . Projectile . | . . . . AOE . | . . . . Terrain Rammed . | . . . . Walls Destroyed . | . . . . Machines Disabled . | . . . . Actions | -11 -10 -9 -9 --------- Run | Scr Mat Mat Sto Total 725 | 61 131 178 355 Wait 19 | . . 17 2 Move 652 | 43 117 152 340 Hop 13 | . 1 3 9 Pick Up 18 | 9 5 3 1 Fast Attach 1 | . . . 1 Attach 11 | 5 2 3 1 Detach . | . . . . Swap . | . . . . Drop 7 | . 6 . 1 Fire 4 | 4 . . . Melee . | . . . . Ram . | . . . . Kick . | . . . . Crush . | . . . . Escape Stasis . | . . . . Rewire . | . . . . Trap . | . . . . Miscellaneous . | . . . . Route ------- -11/Scrapyard -10/Materials -9/Materials -9/Storage History --------- Turn | Location | Event 22 | -11/Scrapyard | Discovered new exit (range 16) 76 | -11/Scrapyard | Entered Materials 142 | -10/Materials | Discovered new exit (range 11) 145 | -10/Materials | Entered another Materials area 145 | -9/Materials | Evolved 2 slots: Propulsion x2 212 | -9/Materials | Discovered new exit (range 13) 220 | -9/Materials | Entered Storage 301 | -9/Storage | Build established: Mutant 310 | -9/Storage | Core integrity fell below 50% 327 | -9/Storage | Lost 6 parts (1p4n1w) 341 | -9/Storage | Core integrity fell below 20% 362 | -9/Storage | Destroyed by S-10 Pest with Light Assault Rifle Last Messages --------------- 00226_ Connecting with Terminal... 00235_ Acquired 50 matter. 00252_ Flight Unit destroyed. 00252_ Med. Laser destroyed. 00255_ Connecting with Door Terminal... 00255_ Flight Unit destroyed. 00280_ Dropped Sml. Storage Unit. 00280_ Ion Engine destroyed. 00286_ K-01 Serf cleans the Terminal. 00294_ K-01 Serf collects debris. 00296_ Flight Unit destroyed. 00306_ Connecting with Door Terminal... >>Open Sealed Heavy Doors opened. 00309_ K-01 Serf collects debris. 00312_ K-01 Serf destroyed. 00317_ O-16 Technician: "IFF HANDSHAKE FAILED. SECURING TERMINAL." 00323_ ALERT: Hostiles spotted, dispatching reinforcements to Terminal S012. 00328_ Acquired Flight Unit. 00332_ Flight Unit destroyed. Map ----- +----------------------------------------------------+ | | | | | | | | | | | | | | | | | | | | | | | | | | | | | ?????????????????????????????????? | | ?????????????????????????????????? | | ?????########?########???????????? | | ?????# ! #?# #########???? | | ?##### #?# """ + #???? | | ## # [! #?# """ # #???? | | / ] #?# """ # #???? | | ## # #?# + s #???? | | ### ## =#?# # s ##+###?? | | #?# ####+############# r s# # | | #?# #??# #?? ###?# w/ # | | #?# #?## ## ""#?####@# " " # | | #?# ### # Y"#????# # "R" # | | #?# + "T" ""?????# #?""" # | | #?##### # """ ##?????# #?? ?? | | #?????## ## #??##### #######? | | ???????# #??# ####??# # #? | | ######?# #???##?????# # #? | | # """ # ############ # #? | | # """ # # #? | | # """ + ##+###?? | | # # #???? | | # # #### #???? | | # ?# #??# #???? | | ######?# #??# #???? | | ???????# #??# #####+#####+#???? | | ???????#+##+#??# #??"" ??# ??? | | ??????? ????# # "T" #?# #?? | | ?????? """"????# # #?#]]]#?? | | #####? """"" #?# # #?#]]]#?? | | # """"" #?# # ! ! ?#####?? | | T # #?######+#####??????? | | "" + """""?????????????????????? | | # """""?????????????????????? | | # """""?????????????????????? | | ##? ?????????????????????? | +----------------------------------------------------+ Best States ------------- Heat Dissipation 28 Energy Generation 10 Energy Capacity 250 Matter Stores 300 Matter Capacity 300 Sight Range 16 Terrain Scan Density 10 Evasion (%) 63 Item Schematics ----------------- None Robot Schematics ------------------ None Fabricated ------------ Nothing Alien Tech Used ----------------- None Achievements -------------- None Challenges ------------ None Game ------ Seed BoreRegenerativeProtection Manual? 0 Play Time 00:12:09 Cumulative 46.5 hours Start 2022.01.20 @ 09:25:21 End 2022.01.20 @ 09:33:59 Sessions 1 Manual Loads 0 Difficulty Rogue Special Mode None Game No. 54 Rogue 11 Adventurer 1 Explorer 42 Win Type - Total 4 Types 4/0/0/0/0/0/0/0/0 Lore% 29 Gallery% 44 Achievement% 35 Wizard Run 0 Options --------- ASCII 0 Keyboard 0 Movement Numpad Keybinds 0 Fullscreen 1 Font 12/Smallcaps Map View 83x54 Tactical HUD 1 Map Filters NONE Filters NONE Steam 1 RUN: 11acec03-511c-4550-86da-d5a382a7d8ab